fUST/lending_fUST_20260107
["ID","MTS","AMOUNT","RATE_DAILY","PERIOD"]
[400682224,1767778267468,-390.92977,0.00027945,7]
[400682225,1767778267478,-151.0,0.00027945,2]
[400682226,1767778267487,-390.92977,0.00027945,7]
[400682227,1767778267496,-717.62,0.00027945,2]
[400682228,1767778267509,-500.0,0.00027945,2]
[400682229,1767778267519,-500.0,0.00027945,2]
[400682230,1767778267528,-500.0,0.00027945,2]
[400682231,1767778267537,-601.36,0.00027945,2]
[400682232,1767778267549,-538.60103528,0.00027945,2]
[400682233,1767778267560,-500.0,0.00027945,2]
[400682234,1767778267570,-500.0,0.00027945,2]
[400682235,1767778267582,-500.0,0.00027945,2]
[400682236,1767778267592,-614.99878302,0.00027945,2]
[400682237,1767778267602,-500.0,0.00027945,2]
[400682238,1767778267612,-2787.6,0.00027945,2]
[400682239,1767778267624,-500.0,0.00027945,2]
[400682240,1767778267634,-612.995739,0.00027945,7]
[400682241,1767778267643,-612.995739,0.00027945,7]
[400682242,1767778267654,-500.0,0.00027945,2]
[400682243,1767778267665,-500.0,0.00027945,2]
[400682244,1767778267848,-612.995739,0.00027945,7]
[400682245,1767778267860,-500.0,0.00027945,2]
[400682246,1767778267870,-500.0,0.00027945,2]
[400682247,1767778267879,-612.995739,0.00027945,7]
[400682248,1767778267889,-500.0,0.00027945,2]
[400682249,1767778267899,-500.0,0.00027945,2]
[400682250,1767778267909,-500.0,0.00027945,2]
[400682251,1767778267919,-500.0,0.00027945,2]
[400682252,1767778267929,-500.0,0.00027945,2]
[400682253,1767778267939,-500.0,0.00027945,2]
[400682254,1767778267948,-500.0,0.00027945,2]
[400682255,1767778267958,-500.0,0.00027945,2]
[400682256,1767778267967,-500.0,0.00027945,2]
[400682257,1767778267983,-500.0,0.00027945,2]
[400682258,1767778267992,-500.0,0.00027945,2]
[400682259,1767778268023,-392.67623752,0.00027945,2]
[400682260,1767778268034,-500.0,0.00027945,2]
[400682261,1767778268044,-500.0,0.00027945,2]
[400682262,1767778268054,-200.0,0.00027945,2]
[400682263,1767778268064,-500.0,0.00027945,2]
[400682264,1767778268075,-500.0,0.00027945,2]
[400682265,1767778268085,-1076.6,0.00027945,2]
[400682266,1767778268096,-505.05,0.00027945,2]
[400682267,1767778268105,-500.0,0.00027945,2]
[400682268,1767778268115,-189.48798872,0.00027945,2]
[400682269,1767778268126,-500.0,0.00027945,2]
[400682270,1767778268136,-215.570059,0.00027945,7]
[400682271,1767778268146,-206.665209,0.00027945,7]
[400682272,1767778268157,-756.53,0.00027945,2]
[400682273,1767778268167,-215.570059,0.00027945,7]
[400682274,1767778268178,-206.665209,0.00027945,7]
[400682275,1767778268188,-206.665209,0.00027945,7]
[400682276,1767778268198,-215.570059,0.00027945,7]
[400682277,1767778268208,-206.665209,0.00027945,7]
[400682278,1767778268218,-215.570059,0.00027945,7]
[400682279,1767778268229,-634.815792,0.00027945,7]
[400682280,1767778268238,-500.0,0.00027945,2]
[400682281,1767778268248,-634.815792,0.00027945,7]
[400682282,1767778268257,-500.0,0.00027945,2]
[400682283,1767778268267,-500.0,0.00027945,2]
[400682284,1767778268278,-634.815792,0.00027945,7]
[400682285,1767778268288,-153.683464,0.00027945,7]
[400682286,1767778268297,-500.0,0.00027945,2]
[400682287,1767778268312,-634.815792,0.00027945,7]
[400682288,1767778268322,-500.0,0.00027945,2]
[400682289,1767778268332,-500.0,0.00027945,2]
[400682290,1767778268344,-500.0,0.00027945,2]
[400682291,1767778268353,-500.0,0.00027945,2]
[400682292,1767778268364,-500.0,0.00027945,2]
[400682293,1767778268374,-836.4,0.00027945,2]
[400682294,1767778268383,-595.34826852,0.00027945,2]
[400682295,1767778268393,-298.315005,0.00027945,7]
[400682296,1767778268403,-298.315005,0.00027945,7]
[400682297,1767778268413,-353.65554506,0.00027945,2]
[400682298,1767778268424,-500.0,0.00027945,2]
[400682299,1767778268435,-629.875941,0.00027945,2]
[400682300,1767778268446,-853.68,0.00027945,2]
[400682301,1767778268456,-689.83,0.00027945,2]
[400682302,1767778268465,-298.315005,0.00027945,7]
[400682303,1767778268475,-500.0,0.00027945,2]
[400682304,1767778268484,-298.315005,0.00027945,7]
[400682305,1767778268494,-500.0,0.00027945,2]
[400682306,1767778268513,-500.0,0.00027945,2]
[400682307,1767778268522,-500.0,0.00027945,2]
[400682308,1767778268532,-500.0,0.00027945,2]
[400682309,1767778268542,-500.0,0.00027945,2]
[400682310,1767778268551,-500.0,0.00027945,2]
[400682311,1767778268561,-500.0,0.00027945,2]
[400682312,1767778268571,-500.0,0.00027945,2]
[400682313,1767778268582,-500.0,0.00027945,2]
[400682314,1767778268592,-500.0,0.00027945,2]
[400682315,1767778268602,-500.0,0.00027945,2]
[400682316,1767778268612,-500.0,0.00027945,2]
[400682317,1767778268621,-500.0,0.00027945,2]
[400682318,1767778268635,-690.11,0.00027945,2]
[400682319,1767778268645,-500.0,0.00027945,2]
[400682320,1767778268654,-500.0,0.00027945,2]
[400682321,1767778268667,-520.98274891,0.00027945,2]
[400682322,1767778268678,-500.0,0.00027945,2]
[400682323,1767778268687,-500.0,0.00027945,2]
[400682324,1767778268697,-500.0,0.00027945,2]
[400682325,1767778268707,-264.29186076,0.00027945,2]
[400682326,1767778268718,-500.0,0.00027945,2]
[400682327,1767778268728,-500.0,0.00027945,2]
[400682328,1767778268738,-500.0,0.00027945,2]
[400682329,1767778268748,-157.31286406,0.00027945,2]
[400682330,1767778268759,-500.0,0.00027945,2]
[400682331,1767778268769,-731.35,0.00027945,2]
[400682332,1767778268779,-527.5040508,0.00027945,2]
[400682333,1767778268789,-532.23600239,0.00027945,2]
[400682334,1767778268799,-3088.57,0.00027945,2]
[400682335,1767778268808,-1000.0,0.00027945,5]
[400682336,1767778268817,-750.0,0.00027945,5]
[400682337,1767778268827,-250.0,0.00027945,5]
[400682338,1767778268837,-151.0,0.00027946,7]
[400682339,1767778268847,-279.168614,0.00027946,7]
[400682340,1767778268856,-151.0,0.00027946,7]
[400682341,1767778268865,-151.0,0.00027946,7]
[400682342,1767778268875,-151.0,0.00027946,7]
[400682343,1767778268885,-151.0,0.00027946,7]
[400682344,1767778268894,-214.456704,0.00027946,7]
[400682345,1767778268905,-214.456704,0.00027946,7]
[400682346,1767778268914,-214.456704,0.00027946,7]
[400682347,1767778268924,-214.456704,0.00027946,7]
[400682348,1767778268934,-636.23441335,0.00027958,2]
[400682349,1767778268944,-2000.0,0.00027997,7]
[400682350,1767778268955,-15317.68742945,0.00028,2]
[400682351,1767778268964,-597.62456116,0.00028,2]
[400682352,1767778268974,-519.98551023,0.00028,2]
[400682353,1767778268983,-346.1,0.00028001,3]
[400682354,1767778268993,-302.06543706,0.00028011,110]
[400682355,1767778269003,-264.09023301,0.00028011,110]
[400682356,1767778269015,-191.37491647,0.00028034,18]
[400682357,1767778269025,-151.0,0.00028038,7]
[400682358,1767778269035,-151.0,0.00028038,7]
[400682359,1767778269045,-151.0,0.00028038,7]
[400682360,1767778269055,-151.0,0.00028038,7]
[400682361,1767778269066,-151.0,0.00028038,7]
[400682362,1767778269075,-151.0,0.00028038,7]
[400682363,1767778269085,-1626.684503,0.00028038,7]
[400682364,1767778269095,-1626.684503,0.00028038,7]
[400682365,1767778269106,-1626.684503,0.00028038,7]
[400682366,1767778269116,-1626.684503,0.00028038,7]
[400682367,1767778269126,-609.666208,0.00028038,7]
[400682368,1767778269135,-609.666208,0.00028038,7]
[400682369,1767778269146,-609.666208,0.00028038,7]
[400682370,1767778269156,-609.666208,0.00028038,7]
[400682371,1767778269167,-5000.0,0.00028038,2]
[400682372,1767778269177,-174.0,0.00028164,28]
[400682373,1767778269187,-2200.0,0.00028181,7]
[400682374,1767778269198,-5597.0348848,0.00028219,2]
[400682375,1767778269208,-500.0,0.00028219,2]
[400682376,1767778269219,-500.0,0.00028219,2]
[400682377,1767778269230,-500.0,0.00028219,2]
[400682378,1767778269239,-836.74,0.00028219,2]
[400682379,1767778269249,-242.04293168,0.00028219,2]
[400682380,1767778269259,-576.51854464,0.00028219,2]
[400682381,1767778269269,-500.0,0.00028219,2]
[400682382,1767778269278,-500.0,0.00028219,2]
[400682383,1767778269288,-500.0,0.00028219,2]
[400682384,1767778269298,-574.24165646,0.00028219,2]
[400682385,1767778269307,-604.5691419,0.00028219,2]
[400682386,1767778269317,-528.5328738,0.00028219,2]
[400682387,1767778269327,-500.0,0.00028219,2]
[400682388,1767778269337,-201.87565185,0.00028219,2]
[400682389,1767778269346,-178.56719036,0.00028219,2]
[400682390,1767778269355,-246.34601962,0.00028219,2]
[400682391,1767778269364,-500.0,0.00028219,2]
[400682392,1767778269374,-500.0,0.00028219,2]
[400682393,1767778269383,-345.3181151,0.00028219,2]
[400682394,1767778269392,-500.0,0.00028219,2]
[400682395,1767778269401,-500.0,0.00028219,2]
[400682396,1767778269411,-500.0,0.00028219,2]
[400682397,1767778269420,-500.0,0.00028219,2]
[400682398,1767778269429,-500.0,0.00028219,2]
[400682399,1767778269439,-500.0,0.00028219,2]
[400682400,1767778269448,-500.0,0.00028219,2]
[400682401,1767778269458,-500.0,0.00028219,2]
[400682402,1767778269468,-500.0,0.00028219,2]
[400682403,1767778269479,-615.69390191,0.00028219,2]
[400682404,1767778269490,-443.89076946,0.00028219,2]
[400682405,1767778269500,-186.99690557,0.00028219,2]
[400682406,1767778269512,-556.73214678,0.00028219,2]
[400682407,1767778269522,-500.0,0.00028219,2]
[400682408,1767778269531,-500.0,0.00028219,2]
[400682409,1767778269540,-500.0,0.00028219,2]
[400682410,1767778269550,-500.0,0.00028219,2]
[400682411,1767778269559,-231.925611,0.00028219,2]
[400682412,1767778269568,-572.81538707,0.00028219,2]
[400682413,1767778269578,-500.0,0.00028219,2]
[400682414,1767778269589,-333.7260999,0.00028219,2]
[400682415,1767778269600,-500.0,0.00028219,2]
[400682416,1767778269609,-500.0,0.00028219,2]
[400682417,1767778269619,-557.5159063,0.00028219,2]
[400682418,1767778269631,-500.0,0.00028219,2]
[400682419,1767778269640,-500.0,0.00028219,2]
[400682420,1767778269651,-544.22588771,0.00028219,2]
[400682421,1767778269661,-397.60413058,0.00028219,2]
[400682422,1767778269670,-500.0,0.00028219,2]
[400682423,1767778269681,-571.66610557,0.00028219,2]
[400682424,1767778269691,-500.0,0.00028219,2]
[400682425,1767778269701,-392.07978129,0.00028219,2]
[400682426,1767778269710,-500.0,0.00028219,2]
[400682427,1767778269719,-500.0,0.00028219,2]
[400682428,1767778269728,-583.04293387,0.00028219,2]
[400682429,1767778269738,-500.0,0.00028219,2]
[400682430,1767778269747,-548.79,0.00028219,2]
[400682431,1767778269756,-500.0,0.00028219,2]
[400682432,1767778269765,-500.0,0.00028219,2]
[400682433,1767778269775,-500.0,0.00028219,2]
[400682434,1767778269783,-576.98465831,0.00028219,2]
[400682435,1767778269793,-500.0,0.00028219,2]
[400682436,1767778269802,-500.0,0.00028219,2]
[400682437,1767778269811,-500.0,0.00028219,2]
[400682438,1767778269820,-500.0,0.00028219,2]
[400682439,1767778269830,-500.0,0.00028219,2]
[400682440,1767778269839,-500.0,0.00028219,2]
[400682441,1767778269848,-585.96572099,0.00028219,2]
[400682442,1767778269857,-500.0,0.00028219,2]
[400682443,1767778269866,-500.0,0.00028219,2]
[400682444,1767778269875,-500.0,0.00028219,2]
[400682445,1767778269885,-551.08967191,0.00028219,2]
[400682446,1767778269894,-500.0,0.00028219,2]
[400682447,1767778269903,-523.36920545,0.00028219,2]
[400682448,1767778269912,-500.0,0.00028219,2]
[400682450,1767778269922,-500.0,0.00028219,2]
[400682451,1767778269932,-500.0,0.00028219,2]
[400682452,1767778269941,-500.0,0.00028219,2]
[400682454,1767778269950,-500.0,0.00028219,2]
[400682455,1767778269959,-500.0,0.00028219,2]
[400682456,1767778269968,-500.0,0.00028219,2]
[400682457,1767778269978,-500.0,0.00028219,2]
[400682458,1767778269987,-633.04694877,0.00028219,2]
[400682459,1767778269996,-500.0,0.00028219,2]
[400682460,1767778270008,-500.0,0.00028219,2]
[400682461,1767778270018,-612.1264659,0.00028219,2]
[400682462,1767778270027,-500.0,0.00028219,2]
[400682463,1767778270037,-913.08,0.00028219,2]
[400682464,1767778270046,-511.35973746,0.00028219,2]
[400682465,1767778270055,-500.0,0.00028219,2]
[400682466,1767778270065,-500.0,0.00028219,2]
[400682467,1767778270075,-500.0,0.00028219,2]
[400682468,1767778270084,-590.37821897,0.00028219,2]
[400682469,1767778270095,-500.0,0.00028219,2]
[400682470,1767778270105,-500.0,0.00028219,2]
[400682471,1767778270114,-500.0,0.00028219,2]
[400682472,1767778270123,-500.0,0.00028219,2]
[400682473,1767778270132,-557.84,0.00028219,2]
[400682474,1767778270142,-235.67110295,0.00028219,2]
[400682475,1767778270151,-500.0,0.00028219,2]
[400682476,1767778270160,-500.0,0.00028219,2]
[400682477,1767778270169,-500.0,0.00028219,2]
[400682478,1767778270179,-500.0,0.00028219,2]
[400682479,1767778270188,-500.0,0.00028219,2]
[400682480,1767778270197,-500.0,0.00028219,2]
[400682481,1767778270207,-500.0,0.00028219,2]
[400682482,1767778270216,-500.0,0.00028219,2]
[400682483,1767778270225,-500.0,0.00028219,2]
[400682484,1767778270234,-500.0,0.00028219,2]
[400682485,1767778270243,-500.0,0.00028219,2]
[400682486,1767778270252,-554.76701803,0.00028219,2]
[400682487,1767778270261,-500.0,0.00028219,2]
[400682488,1767778270271,-500.0,0.00028219,2]
[400682489,1767778270280,-500.0,0.00028219,2]
[400682490,1767778270290,-500.0,0.00028219,2]
[400682491,1767778270299,-500.0,0.00028219,2]
[400682492,1767778270308,-289.45163615,0.00028219,2]
[400682493,1767778270318,-500.0,0.00028219,2]
[400682494,1767778270328,-500.0,0.00028219,2]
[400682495,1767778270338,-576.28062762,0.00028219,2]
[400682496,1767778270347,-528.75905567,0.00028219,2]
[400682497,1767778270358,-500.0,0.00028219,2]
[400682498,1767778270367,-500.0,0.00028219,2]
[400682499,1767778270376,-500.0,0.00028219,2]
[400682500,1767778270386,-231.13812863,0.00028219,2]
[400682501,1767778270395,-500.0,0.00028219,2]
[400682502,1767778270404,-500.0,0.00028219,2]
[400682503,1767778270415,-500.0,0.00028219,2]
[400682504,1767778270424,-500.0,0.00028219,2]
[400682505,1767778270433,-500.0,0.00028219,2]
[400682506,1767778270443,-500.0,0.00028219,2]
[400682507,1767778270452,-500.0,0.00028219,2]
[400682508,1767778270461,-500.0,0.00028219,2]
[400682509,1767778270471,-500.0,0.00028219,2]
[400682510,1767778270481,-200.0,0.00028219,7]
[400682511,1767778270490,-500.0,0.00028219,2]
[400682512,1767778270500,-200.0,0.00028219,7]
[400682513,1767778270512,-200.0,0.00028219,7]
[400682514,1767778270522,-500.0,0.00028219,2]
[400682515,1767778270531,-200.0,0.00028219,7]
[400682516,1767778270540,-500.0,0.00028219,2]
[400682517,1767778270550,-500.0,0.00028219,2]
[400682518,1767778270560,-500.0,0.00028219,2]
[400682519,1767778270571,-168.9738372,0.00028219,2]
[400682520,1767778270581,-500.0,0.00028219,2]
[400682521,1767778270590,-500.0,0.00028219,2]
[400682522,1767778270599,-151.0,0.00028219,7]
[400682523,1767778270608,-151.0,0.00028219,7]
[400682524,1767778270617,-500.0,0.00028219,2]
[400682525,1767778270627,-151.0,0.00028219,7]
[400682526,1767778270637,-560.99239782,0.00028219,2]
[400682527,1767778270646,-500.0,0.00028219,2]
[400682528,1767778270655,-529.98714243,0.00028219,2]
[400682529,1767778270665,-500.0,0.00028219,2]
[400682530,1767778270674,-500.0,0.00028219,2]
[400682531,1767778270683,-500.0,0.00028219,2]
[400682532,1767778270693,-637.59,0.00028219,2]
[400682533,1767778270702,-500.0,0.00028219,2]
[400682534,1767778270711,-500.0,0.00028219,2]
[400682535,1767778270721,-500.0,0.00028219,2]
[400682536,1767778270730,-500.0,0.00028219,2]
[400682537,1767778270739,-500.0,0.00028219,2]
[400682538,1767778270748,-394.81585347,0.00028219,2]
[400682539,1767778270757,-500.0,0.00028219,2]
[400682540,1767778270766,-500.0,0.00028219,2]
[400682541,1767778270775,-500.0,0.00028219,2]
[400682542,1767778270785,-500.0,0.00028219,2]
[400682543,1767778270794,-500.0,0.00028219,2]
[400682544,1767778270803,-1000.0,0.00028219,2]
[400682545,1767778270813,-500.0,0.00028219,2]
[400682546,1767778270822,-500.0,0.00028219,2]
[400682547,1767778270831,-500.0,0.00028219,2]
[400682548,1767778270840,-500.0,0.00028219,2]
[400682549,1767778270850,-500.0,0.00028219,2]
[400682550,1767778270859,-500.0,0.00028219,2]
[400682551,1767778270869,-500.0,0.00028219,2]
[400682552,1767778270878,-500.0,0.00028219,2]
[400682553,1767778270888,-531.09626607,0.00028219,2]
[400682554,1767778270898,-258.86599378,0.00028219,2]
[400682555,1767778270907,-500.0,0.00028219,2]
[400682556,1767778270917,-500.0,0.00028219,2]
[400682557,1767778270926,-500.0,0.00028219,2]
[400682558,1767778270936,-500.0,0.00028219,2]
[400682559,1767778270945,-500.0,0.00028219,2]
[400682560,1767778270955,-500.0,0.00028219,2]
[400682561,1767778270964,-500.0,0.00028219,2]
[400682562,1767778270973,-500.0,0.00028219,2]
[400682563,1767778270983,-578.71930715,0.00028219,2]
[400682564,1767778270992,-531.96903272,0.00028219,2]
[400682565,1767778271001,-500.0,0.00028219,2]
[400682566,1767778271011,-500.0,0.00028219,2]
[400682567,1767778271020,-500.0,0.00028219,2]
[400682568,1767778271029,-500.0,0.00028219,2]
[400682569,1767778271039,-461.57037593,0.00028219,2]
[400682571,1767778271209,-500.0,0.00028219,2]
[400682572,1767778271219,-412.84936115,0.00028219,2]
[400682573,1767778271228,-546.83794716,0.00028219,2]
[400682574,1767778271237,-500.0,0.00028219,2]
[400682575,1767778271247,-545.95922411,0.00028219,2]
[400682576,1767778271256,-500.0,0.00028219,2]
[400682577,1767778271266,-500.0,0.00028219,2]
[400682578,1767778271276,-500.0,0.00028219,2]
[400682579,1767778271285,-500.0,0.00028219,2]
[400682580,1767778271295,-209.30011624,0.00028219,2]
[400682581,1767778271304,-500.0,0.00028219,2]
[400682582,1767778271315,-559.55910914,0.00028219,2]
[400682583,1767778271325,-507.36052564,0.00028219,2]
[400682584,1767778271335,-280.77710998,0.00028219,2]
[400682585,1767778271344,-547.19616426,0.00028219,2]
[400682586,1767778271354,-500.0,0.00028219,2]
[400682587,1767778271363,-500.0,0.00028219,2]
[400682588,1767778271372,-500.0,0.00028219,2]
[400682589,1767778271382,-500.0,0.00028219,2]
[400682590,1767778271391,-3962.5,0.00028219,2]
[400682591,1767778271400,-500.0,0.00028219,2]
[400682592,1767778271409,-500.0,0.00028219,2]
[400682593,1767778271419,-558.23184224,0.00028219,2]
[400682594,1767778271429,-500.0,0.00028219,2]
[400682595,1767778271438,-500.0,0.00028219,2]
[400682596,1767778271449,-582.84,0.00028219,2]
[400682597,1767778271458,-525.31959947,0.00028219,2]
[400682598,1767778271467,-500.0,0.00028219,2]
[400682599,1767778271477,-500.0,0.00028219,2]
[400682600,1767778271486,-500.0,0.00028219,2]
[400682601,1767778271496,-500.0,0.00028219,2]
[400682602,1767778271509,-619.66757045,0.00028219,2]
[400682603,1767778271518,-500.0,0.00028219,2]
[400682604,1767778271528,-500.0,0.00028219,2]
[400682605,1767778271537,-500.0,0.00028219,2]
[400682606,1767778271547,-500.0,0.00028219,2]
[400682607,1767778271556,-500.0,0.00028219,2]
[400682608,1767778271567,-500.0,0.00028219,2]
[400682609,1767778271576,-500.0,0.00028219,2]
[400682610,1767778271586,-500.0,0.00028219,2]
[400682611,1767778271595,-372.6673866,0.00028219,2]
[400682612,1767778271603,-235.97451712,0.00028219,2]
[400682613,1767778271612,-523.89501623,0.00028219,2]
[400682614,1767778271622,-500.0,0.00028219,2]
[400682615,1767778271631,-500.0,0.00028219,2]
[400682616,1767778271640,-500.0,0.00028219,2]
[400682617,1767778271648,-500.0,0.00028219,2]
[400682618,1767778271658,-500.0,0.00028219,2]
[400682619,1767778271667,-725.03,0.00028219,2]
[400682620,1767778271676,-500.0,0.00028219,2]
[400682621,1767778271687,-500.0,0.00028219,2]
[400682622,1767778271696,-500.0,0.00028219,2]
[400682623,1767778271706,-500.0,0.00028219,2]
[400682624,1767778271715,-500.0,0.00028219,2]
[400682625,1767778271725,-563.87773435,0.00028219,2]
[400682626,1767778271734,-500.0,0.00028219,2]
[400682627,1767778271744,-235.37622654,0.00028219,2]
[400682628,1767778271754,-500.0,0.00028219,2]
[400682629,1767778271762,-500.0,0.00028219,2]
[400682630,1767778271771,-453.30260385,0.00028219,2]
[400682631,1767778271780,-500.0,0.00028219,2]
[400682632,1767778271790,-500.0,0.00028219,2]
[400682633,1767778271799,-500.0,0.00028219,2]
[400682634,1767778271809,-500.0,0.00028219,2]
[400682635,1767778271823,-500.0,0.00028219,2]
[400682636,1767778271833,-678.0,0.00028219,2]
[400682637,1767778271843,-500.0,0.00028219,2]
[400682638,1767778271853,-500.0,0.00028219,2]
[400682639,1767778271863,-500.0,0.00028219,2]
[400682640,1767778271872,-2251.87,0.00028219,2]
[400682641,1767778271881,-292.0,0.00028219,2]
[400682642,1767778271890,-1000.0,0.00028219,2]
[400682643,1767778271899,-500.0,0.00028219,2]
[400682644,1767778271909,-956.27,0.00028219,2]
[400682645,1767778271918,-500.0,0.00028219,2]
[400682646,1767778271927,-500.0,0.00028219,2]
[400682647,1767778271938,-500.0,0.00028219,2]
[400682648,1767778271947,-500.0,0.00028219,2]
[400682649,1767778271956,-500.0,0.00028219,2]
[400682650,1767778271966,-14665.45,0.00028219,2]
[400682651,1767778271975,-588.39283623,0.00028219,2]
[400682652,1767778271985,-333.40709598,0.00028219,2]
[400682653,1767778271995,-500.0,0.00028219,2]
[400682654,1767778272005,-500.0,0.00028219,2]
[400682655,1767778272014,-500.0,0.00028219,2]
[400682656,1767778272023,-437.57170781,0.00028219,2]
[400682657,1767778272033,-500.0,0.00028219,2]
[400682658,1767778272042,-500.0,0.00028219,2]
[400682659,1767778272052,-500.0,0.00028219,2]
[400682660,1767778272062,-500.0,0.00028219,2]
[400682661,1767778272073,-539.26030068,0.00028219,2]
[400682662,1767778272083,-334.58364315,0.00028219,2]
[400682663,1767778272093,-661.34,0.00028219,2]
[400682664,1767778272102,-500.0,0.00028219,2]
[400682665,1767778272112,-534.78953106,0.00028219,2]
[400682666,1767778272122,-500.0,0.00028219,2]
[400682667,1767778272131,-500.0,0.00028219,2]
[400682668,1767778272141,-500.0,0.00028219,2]
[400682669,1767778272150,-208.54613436,0.00028219,2]
[400682670,1767778272160,-253.66093416,0.00028219,2]
[400682671,1767778272170,-218.66129606,0.00028219,2]
[400682672,1767778272179,-500.0,0.00028219,2]
[400682673,1767778272189,-909.99,0.00028219,2]
[400682674,1767778272199,-4613.91,0.00028219,2]
[400682675,1767778272208,-3024.23,0.00028219,2]
[400682676,1767778272218,-500.0,0.00028219,2]
[400682677,1767778272227,-500.0,0.00028219,2]
[400682678,1767778272236,-500.0,0.00028219,2]
[400682679,1767778272245,-210.33072695,0.00028219,2]
[400682680,1767778272254,-927.69,0.00028219,2]
[400682681,1767778272263,-500.0,0.00028219,2]
[400682682,1767778272272,-500.0,0.00028219,2]
[400682683,1767778272282,-500.0,0.00028219,2]
[400682684,1767778272291,-500.0,0.00028219,2]
[400682685,1767778272301,-594.26062475,0.00028219,2]
[400682686,1767778272309,-500.0,0.00028219,2]
[400682687,1767778272320,-500.0,0.00028219,2]
[400682688,1767778272329,-500.0,0.00028219,2]
[400682689,1767778272338,-500.0,0.00028219,2]
[400682690,1767778272347,-500.0,0.00028219,2]
[400682691,1767778272356,-717.62,0.00028219,2]
[400682692,1767778272366,-497.08752961,0.00028219,2]
[400682693,1767778272375,-500.0,0.00028219,2]
[400682694,1767778272384,-500.0,0.00028219,2]
[400682695,1767778272394,-601.36,0.00028219,2]
[400682696,1767778272405,-186.63222322,0.00028219,2]
[400682697,1767778272414,-500.0,0.00028219,2]
[400682698,1767778272424,-258.21390924,0.00028219,2]
[400682699,1767778272434,-500.0,0.00028219,2]
[400682700,1767778272443,-2787.6,0.00028219,2]
[400682701,1767778272452,-325.19691615,0.00028219,2]
[400682702,1767778272462,-500.0,0.00028219,2]
[400682703,1767778272471,-500.0,0.00028219,2]
[400682704,1767778272480,-500.0,0.00028219,2]
[400682705,1767778272489,-500.0,0.00028219,2]
[400682706,1767778272498,-500.0,0.00028219,2]
[400682707,1767778272510,-496.84809073,0.00028219,2]
[400682708,1767778272519,-375.44951632,0.00028219,2]
[400682709,1767778272528,-500.0,0.00028219,2]
[400682710,1767778272539,-500.0,0.00028219,2]
[400682711,1767778272557,-500.0,0.00028219,2]
[400682712,1767778272567,-500.0,0.00028219,2]
[400682713,1767778272576,-500.0,0.00028219,2]
[400682714,1767778272585,-500.0,0.00028219,2]
[400682715,1767778272595,-387.59341102,0.00028219,2]
[400682716,1767778272604,-500.0,0.00028219,2]
[400682717,1767778272613,-500.0,0.00028219,2]
[400682718,1767778272623,-500.0,0.00028219,2]
[400682719,1767778272632,-200.0,0.00028219,2]
[400682720,1767778272642,-500.0,0.00028219,2]
[400682721,1767778272652,-301.53487192,0.00028219,2]
[400682722,1767778272661,-1076.6,0.00028219,2]
[400682723,1767778272670,-505.05,0.00028219,2]
[400682724,1767778272680,-291.59561338,0.00028219,2]
[400682725,1767778272689,-297.98489673,0.00028219,2]
[400682726,1767778272698,-756.53,0.00028219,2]